bitfinex-derivatives/quotes_BTCF0:USTF0_20250501
["timestamp","ask_amount","ask_price","bid_price","bid_amount"]
[1746116455433,0.933689,97012.0,97006.0,0.2060994]
[1746116455434,0.2576233,97007.0,97006.0,0.0321]
[1746116456334,0.2060985,97007.0,97006.0,0.2382006]
[1746116456533,0.2576194,97009.0,97008.0,0.2060963]
[1746116456736,0.927692,97012.0,97011.0,0.20609]
[1746116457133,0.3608,97012.0,97011.0,0.20609]
[1746116457336,0.3608,97012.0,97011.0,0.30609]
[1746116458536,0.3608,97012.0,97011.0,0.33699]
[1746116459140,0.3608,97012.0,97011.0,0.23699]
[1746116459531,0.2060791,97017.0,97016.0,0.206077]
[1746116459734,0.2060747,97019.0,97018.0,0.206073]
[1746116459933,0.0515114,97032.0,97013.0,0.12864]
[1746116460129,0.0515128,97030.0,97017.0,0.2060731]
[1746116460340,0.2060751,97019.0,97018.0,0.2060728]
[1746116460541,0.2060751,97019.0,97018.0,0.2369728]
[1746116460741,0.2060793,97017.0,97015.0,0.0515203]
[1746116460942,0.2060793,97017.0,97016.0,0.2060775]
[1746116461443,0.2363793,97017.0,97016.0,0.2060775]
[1746116462536,0.2373793,97017.0,97016.0,0.2060775]
[1746116462736,0.001,97017.0,97016.0,0.2060775]
[1746116463344,0.002,97017.0,97016.0,0.2060775]
[1746116463834,0.002,97017.0,97016.0,0.2373775]
[1746116464036,0.26084,97026.0,97025.0,0.2060602]
[1746116464435,0.26084,97026.0,97025.0,0.3060602]
[1746116464732,0.4668981,97026.0,97025.0,0.3060602]
[1746116464940,0.4668981,97026.0,97025.0,0.3373602]
[1746116466243,0.4688981,97026.0,97025.0,0.3373602]
[1746116466940,0.4708981,97026.0,97025.0,0.1313]
[1746116467143,0.4708981,97026.0,97025.0,0.3373602]
[1746116467144,0.5035981,97026.0,97025.0,0.3373602]
[1746116467650,0.5019981,97026.0,97025.0,0.3373602]
[1746116468742,0.5019981,97026.0,97025.0,0.1]
[1746116469043,0.2575902,97020.0,97019.0,0.206073]
[1746116469345,0.2060722,97020.0,97019.0,0.306073]
[1746116470438,0.2060722,97020.0,97019.0,0.338573]
[1746116470847,0.2070722,97020.0,97019.0,0.338573]
[1746116471939,0.001,97020.0,97019.0,0.338573]
[1746116473440,0.0343,97020.0,97019.0,0.338573]
[1746116474445,0.001,97020.0,97019.0,0.338573]
[1746116474642,0.3608,97033.0,97032.0,0.2060454]
[1746116474848,0.3608,97033.0,97032.0,0.3060454]
[1746116475050,0.5668432,97033.0,97032.0,0.3060454]
[1746116475246,0.3608,97033.0,97032.0,0.3060454]
[1746116475449,0.3608,97033.0,97032.0,0.3372454]
[1746116475951,0.3618,97033.0,97032.0,0.3372454]
[1746116476157,0.3618,97033.0,97032.0,0.3673454]
[1746116476847,0.5678432,97033.0,97032.0,0.3673454]
[1746116477055,0.5986432,97033.0,97032.0,0.3673454]
[1746116477858,0.3926,97033.0,97032.0,0.3673454]
[1746116478449,0.39158,97033.0,97032.0,0.3673454]
[1746116479659,0.5968932,97033.0,97032.0,0.3673454]
[1746116479858,0.39085,97033.0,97032.0,0.3673454]
[1746116480858,0.5968932,97033.0,97032.0,0.3673454]
[1746116481852,0.39085,97033.0,97032.0,0.3673454]
[1746116483458,0.3608,97041.0,97032.0,0.5221]
[1746116483661,0.0314,97044.0,97039.0,0.2060305]
[1746116483852,0.3608,97061.0,97039.0,0.1]
[1746116484058,0.3608,97061.0,97055.0,0.2059965]
[1746116484365,0.2059672,97069.0,97068.0,0.2059686]
[1746116485057,0.2059672,97069.0,97068.0,0.2690686]
[1746116485259,0.032,97071.0,97070.0,0.2059647]
[1746116485558,0.2059668,97069.0,97068.0,0.2690676]
[1746116485958,0.2109668,97069.0,97068.0,0.2690676]
[1746116486462,0.2089668,97069.0,97068.0,0.2690676]
[1746116486659,0.2059668,97069.0,97068.0,0.2690676]
[1746116487559,0.0321,97070.0,97069.0,0.2059668]
[1746116487860,0.0321,97070.0,97069.0,0.2690668]
[1746116488256,0.2380647,97070.0,97069.0,0.2690668]
[1746116489265,0.2380647,97070.0,97069.0,0.2700668]
[1746116489464,0.2372547,97070.0,97069.0,0.2700668]
[1746116490167,0.1351647,97070.0,97069.0,0.2700668]
[1746116491168,0.2059601,97073.0,97072.0,0.2059586]
[1746116494567,0.0015,97075.0,97074.0,0.2059562]
[1746116495666,0.0015,97075.0,97074.0,0.3059562]
[1746116495866,0.0514843,97083.0,97074.0,0.3059562]
[1746116495867,0.1514756,97100.0,97085.0,0.2059329]
[1746116496074,0.5667122,97095.0,97094.0,0.2059138]
[1746116496369,0.1030444,97089.0,97088.0,0.06552]
[1746116496563,0.1030444,97089.0,97088.0,0.2714465]
[1746116496767,0.1030444,97089.0,97088.0,0.06552]
[1746116497065,0.0601,97090.0,97088.0,0.27902422]
[1746116497268,0.2679244,97089.0,97088.0,0.07309772]
[1746116497662,0.2679244,97089.0,97088.0,0.27902422]
[1746116498071,0.2679244,97089.0,97088.0,0.28302422]
[1746116498562,0.2679244,97089.0,97088.0,0.28602422]
[1746116499075,0.062,97089.0,97088.0,0.28602422]
[1746116499380,0.3608,97095.0,97094.0,0.2059138]
[1746116499571,0.5667117,97095.0,97094.0,0.2059138]
[1746116499961,0.0514785,97094.0,97091.0,0.0328]
[1746116500165,0.205918,97092.0,97091.0,0.0328]
[1746116501371,0.2059244,97089.0,97088.0,0.00757772]
[1746116501582,0.2059244,97089.0,97088.0,0.1]
[1746116502268,0.2375244,97089.0,97088.0,0.1]
[1746116502465,0.2375244,97089.0,97088.0,0.00753219]
[1746116502776,0.2375244,97089.0,97088.0,0.007]
[1746116505879,0.2375244,97089.0,97088.0,0.01480401]
[1746116507883,0.2375244,97089.0,97088.0,0.22073051]
[1746116508881,0.2375244,97089.0,97088.0,0.01480401]
[1746116510782,0.2375244,97089.0,97088.0,0.01080401]
[1746116511086,0.2375244,97089.0,97088.0,0.01480401]
[1746116517498,0.2375244,97089.0,97088.0,0.01380401]
[1746116518194,0.2375244,97089.0,97088.0,0.01480401]
[1746116522496,0.3608,97091.0,97088.0,0.06628511]
[1746116522688,0.3608,97091.0,97090.0,0.2059223]
[1746116522894,0.1,97100.0,97099.0,0.2059032]
[1746116523092,0.1,97100.0,97099.0,0.3059032]
[1746116523093,0.3059011,97100.0,97099.0,0.3059032]
[1746116523793,0.3059011,97100.0,97099.0,0.1]
[1746116524000,0.3059011,97100.0,97099.0,0.3689032]
[1746116524302,0.3059011,97100.0,97099.0,0.3699032]
[1746116524497,0.3059011,97100.0,97099.0,0.3709032]
[1746116525398,0.3059011,97100.0,97099.0,0.165]
[1746116525604,0.3059011,97100.0,97099.0,0.3709032]
[1746116528098,0.3059011,97100.0,97099.0,0.165]
[1746116528299,0.3059011,97100.0,97090.0,0.18402455]
[1746116528300,0.2059244,97089.0,97088.0,0.00780401]
[1746116528495,0.2059308,97086.0,97085.0,0.2059323]
[1746116528698,0.2059329,97085.0,97084.0,0.2360343]
[1746116528903,0.2387329,97085.0,97084.0,0.2360343]
[1746116529505,0.2059329,97085.0,97084.0,0.2360343]
[1746116530111,0.2059329,97085.0,97084.0,0.2390343]
[1746116530997,0.2059329,97085.0,97084.0,0.2430343]
[1746116531598,0.2059329,97085.0,97084.0,0.2754343]
[1746116534408,0.19306962,97085.0,97084.0,0.2754343]
[1746116539009,0.19306962,97085.0,97084.0,0.0695]
[1746116539813,0.22356962,97085.0,97084.0,0.0695]
[1746116541213,0.22356962,97085.0,97084.0,0.0655]
[1746116541408,0.22356962,97085.0,97084.0,0.0695]
[1746116542505,0.22356962,97085.0,97084.0,0.275435]
[1746116546118,0.21070593,97085.0,97084.0,0.271435]
[1746116546411,0.21070593,97085.0,97084.0,0.275435]
[1746116547622,0.21070593,97085.0,97084.0,0.0695]
[1746116547819,0.21070593,97085.0,97084.0,0.0394]
[1746116548007,0.2059668,97069.0,97068.0,0.0322]
[1746116548309,0.2059668,97069.0,97066.0,0.3608]
[1746116548310,0.2059689,97068.0,97067.0,0.0302]
[1746116548518,0.3024689,97068.0,97067.0,0.0302]
[1746116549412,0.3024689,97068.0,97067.0,0.0322]
[1746116549806,0.3024689,97068.0,97067.0,0.0332]
[1746116550010,0.3024689,97068.0,97067.0,0.0352]
[1746116551709,0.3024689,97068.0,97067.0,0.0332]
[1746116552213,0.3024689,97068.0,97067.0,0.0302]
[1746116552417,0.3024689,97068.0,97067.0,0.0312]
[1746116554322,0.3024689,97068.0,97067.0,0.001]
[1746116555414,0.2059732,97066.0,97065.0,0.00154498]
[1746116556711,0.2059732,97066.0,97065.0,0.00354498]
[1746116557318,0.2059732,97066.0,97065.0,0.20952028]
[1746116557719,0.3608,97073.0,97068.0,0.051492]
[1746116558016,0.0514901,97072.0,97069.0,0.0946]
[1746116558223,0.2059647,97070.0,97069.0,0.3005626]
[1746116559521,0.2059647,97070.0,97069.0,0.3015626]
[1746116560124,0.19309951,97070.0,97069.0,0.3015626]
[1746116560321,0.19309951,97070.0,97069.0,0.0956]
[1746116560619,0.19309951,97070.0,97069.0,0.0654]
[1746116561232,0.19409951,97070.0,97069.0,0.0694]
[1746116561425,0.25669951,97070.0,97069.0,0.0694]
[1746116561627,0.25669951,97070.0,97069.0,0.0704]
[1746116561924,0.25569951,97070.0,97069.0,0.0684]
[1746116562120,0.22459951,97070.0,97069.0,0.0684]
[1746116562927,0.22459951,97070.0,97069.0,0.0694]
[1746116564425,0.22459951,97070.0,97069.0,0.0684]
[1746116564628,0.4122778,97096.0,97076.0,0.0514873]
[1746116564831,0.2059498,97078.0,97077.0,0.0624]
[1746116565134,0.2059498,97078.0,97077.0,0.0937]
[1746116565730,0.2373498,97078.0,97077.0,0.0937]
[1746116565920,0.2695498,97078.0,97077.0,0.0967]
[1746116566124,0.2695498,97078.0,97077.0,0.0987]
[1746116568134,0.2695498,97078.0,97077.0,0.0977]
[1746116568538,0.2695498,97078.0,97077.0,0.0957]
[1746116568744,0.2695498,97078.0,97077.0,0.0977]
[1746116570538,0.2695498,97078.0,97077.0,0.0957]
[1746116570839,0.2695498,97078.0,97077.0,0.0977]
[1746116571041,0.2695498,97078.0,97077.0,0.0957]
[1746116571236,0.2695498,97078.0,97077.0,0.0977]
[1746116572245,0.2695498,97078.0,97077.0,0.0957]
[1746116572442,0.2695498,97078.0,97077.0,0.0977]
[1746116572637,0.2695498,97078.0,97077.0,0.0363]
[1746116572944,0.2996498,97078.0,97077.0,0.0363]
[1746116573443,0.2996498,97078.0,97077.0,0.004]
[1746116574136,0.2996498,97078.0,97077.0,0.002]
[1746116574336,0.2996498,97078.0,97077.0,0.004]
[1746116574533,0.2996498,97078.0,97077.0,0.003]
[1746116574738,0.2996498,97078.0,97077.0,0.002]
[1746116575945,0.2695498,97078.0,97077.0,0.002]
[1746116576141,0.2373498,97078.0,97077.0,0.002]
[1746116576444,0.2059498,97078.0,97077.0,0.2079498]
[1746116576635,0.2059498,97078.0,97077.0,0.3031498]
[1746116577646,0.2059438,97080.0,97079.0,0.2059414]
[1746116577836,0.2059438,97080.0,97079.0,0.2697414]
[1746116578940,0.2059438,97080.0,97079.0,0.2727414]
[1746116580550,0.2059438,97080.0,97079.0,0.0668]
[1746116580740,0.2069438,97080.0,97079.0,0.007]
[1746116581250,0.2716438,97080.0,97079.0,0.007]
[1746116582044,0.2716438,97080.0,97079.0,0.005]
[1746116582248,0.2706438,97080.0,97079.0,0.002]
[1746116582448,0.2383438,97080.0,97079.0,0.002]
[1746116583443,0.2714438,97080.0,97079.0,0.001]
[1746116583645,0.2714438,97080.0,97079.0,0.002]
[1746116590252,0.2714438,97080.0,97079.0,0.001]
[1746116591056,0.2059732,97066.0,97049.0,0.06536]
[1746116591271,0.5667732,97066.0,97056.0,0.0314]
[1746116591855,0.6316732,97066.0,97056.0,0.0314]
[1746116592057,0.6316732,97066.0,97065.0,0.00354498]
[1746116593557,0.6316732,97066.0,97065.0,0.00554498]
[1746116594555,0.2059902,97058.0,97056.0,0.0314]
[1746116594758,0.5667902,97058.0,97050.0,0.03]
[1746116594960,0.5667902,97058.0,97051.0,0.0301]
[1746116595165,0.5667902,97058.0,97056.0,0.0301]
[1746116595652,0.6307902,97058.0,97056.0,0.0301]
[1746116595961,0.6307902,97058.0,97049.0,0.0311]
[1746116596155,0.6307902,97058.0,97050.0,0.0301]
[1746116596555,0.6317902,97058.0,97057.0,0.00454548]
[1746116596761,0.6317902,97058.0,97057.0,0.00654548]
[1746116597059,0.2060284,97040.0,97039.0,0.00780189]
[1746116597261,0.2060284,97040.0,97035.0,0.00154559]
[1746116597262,0.2060347,97037.0,97036.0,0.0922]
[1746116599769,0.2070347,97037.0,97036.0,0.1052]
[1746116600463,0.2070347,97037.0,97036.0,0.11280765]
[1746116601759,0.2575351,97045.0,97044.0,0.2060102]
[1746116601960,0.2575351,97045.0,97044.0,0.5668102]
[1746116602463,0.3090416,97045.0,97044.0,0.5668102]
[1746116602663,0.3090416,97045.0,97044.0,0.3608]
[1746116602959,0.3100416,97045.0,97044.0,0.398]
[1746116603160,0.001,97045.0,97044.0,0.6040199]
[1746116603357,0.001,97045.0,97044.0,0.7040199]
[1746116603558,0.2070178,97045.0,97044.0,0.7080199]
[1746116604759,0.3608,97063.0,97044.0,0.502]
[1746116604956,0.0514954,97062.0,97060.0,0.3608]
[1746116605155,0.2574771,97062.0,97061.0,0.0966]
[1746116606564,0.2574771,97062.0,97061.0,0.0976]
[1746116606962,0.2574771,97062.0,97061.0,0.0651]
[1746116608656,0.2574771,97062.0,97061.0,0.0641]
[1746116608857,0.2574771,97062.0,97061.0,0.0651]
[1746116609466,0.2574771,97062.0,97061.0,0.0641]
[1746116609967,0.2584771,97062.0,97061.0,0.0641]
[1746116610963,0.2060178,97045.0,97038.0,0.0515081]
[1746116611267,0.2060178,97045.0,97044.0,0.5668199]
[1746116611769,0.2575097,97053.0,97052.0,0.2574989]
[1746116611958,0.2575097,97053.0,97052.0,0.6182989]
[1746116612360,0.3089914,97060.0,97059.0,0.2059859]
[1746116612761,0.0302,97076.0,97059.0,0.2059859]
[1746116612762,0.0514925,97068.0,97067.0,0.0514923]
[1746116612961,0.2574614,97068.0,97067.0,0.6697472]
[1746116613161,0.0514855,97081.0,97072.0,0.0514896]
[1746116613371,0.2059562,97074.0,97073.0,0.2989562]
[1746116614673,0.2069562,97074.0,97073.0,0.2989562]
[1746116615266,0.2069562,97074.0,97073.0,0.093]
[1746116615760,0.2079562,97074.0,97073.0,0.093]
[1746116615963,0.2079562,97074.0,97073.0,0.2989583]
[1746116616170,0.2079562,97074.0,97073.0,0.093]
[1746116618379,0.2079562,97074.0,97073.0,0.2989583]
[1746116618581,0.2079562,97074.0,97073.0,0.093]
[1746116619577,0.2079562,97074.0,97073.0,0.2989583]
[1746116619876,0.2079562,97074.0,97073.0,0.093]
[1746116620577,0.2380562,97074.0,97073.0,0.093]
[1746116623373,0.39566941,97091.0,97073.0,0.093]
[1746116623571,0.2059392,97082.0,97081.0,0.3608]
[1746116624781,0.2079392,97082.0,97081.0,0.3608]
[1746116625172,0.2079392,97082.0,97081.0,0.5667414]
[1746116625776,0.2079392,97082.0,97081.0,0.58194196]
[1746116625973,0.2109392,97082.0,97081.0,0.58294196]
[1746116626472,0.2109392,97082.0,97081.0,0.37700056]
[1746116627080,0.2425392,97082.0,97081.0,0.37700056]
[1746116628678,0.2425392,97082.0,97081.0,0.37700017]
[1746116628980,0.34554721,97082.0,97081.0,0.37700017]
[1746116629381,0.70634721,97082.0,97081.0,0.01620017]
[1746116631380,0.70634721,97082.0,97081.0,7e-08]
[1746116632387,0.2059647,97070.0,97069.0,0.032]
[1746116633178,0.2386647,97070.0,97069.0,0.032]
[1746116634386,0.2386647,97070.0,97069.0,0.033]
[1746116636288,0.2059689,97068.0,97067.0,0.3608]
[1746116637488,0.2059689,97068.0,97067.0,0.3628]
[1746116639486,0.2069689,97068.0,97067.0,0.3608]
[1746116639687,0.2089689,97068.0,97067.0,0.3618]
[1746116640286,0.2059795,97063.0,97062.0,0.0315]
[1746116641086,0.2718795,97063.0,97062.0,0.0315]
[1746116642783,0.2728795,97063.0,97062.0,0.0315]
[1746116645389,0.2396795,97063.0,97062.0,0.0315]
[1746116646491,0.2069795,97063.0,97062.0,0.2374817]
[1746116646682,0.2059645,97074.0,97073.0,0.2059511]
[1746116646880,0.2574544,97074.0,97073.0,0.5667511]
[1746116648084,0.2574544,97074.0,97073.0,0.3608]
[1746116648685,0.2574544,97074.0,97073.0,0.3922]
[1746116649285,0.2584544,97074.0,97073.0,0.3922]
[1746116649590,0.2594544,97074.0,97073.0,0.3922]
[1746116662288,0.2594544,97074.0,97073.0,0.0314]
[1746116662485,0.3624704,97074.0,97073.0,0.0314]
[1746116662983,0.2059689,97068.0,97067.0,0.0317]
[1746116663189,0.0514945,97064.0,97057.0,0.00154548]
[1746116663390,0.2059902,97058.0,97057.0,0.00154548]
[1746116663585,0.18910128,97058.0,97057.0,0.00154548]
[1746116664693,0.18910128,97058.0,97057.0,0.00254548]
[1746116664896,0.20742967,97058.0,97057.0,0.00254548]
[1746116665091,0.26822967,97058.0,97057.0,0.00254548]
[1746116665494,0.26922967,97058.0,97057.0,0.00154548]
[1746116665998,0.26822967,97058.0,97057.0,0.00154548]
[1746116666305,0.26922967,97058.0,97057.0,0.03474548]
[1746116666902,0.63002967,97058.0,97057.0,0.03474548]
[1746116667402,0.63002967,97058.0,97057.0,0.00154548]
[1746116667703,0.63102967,97058.0,97057.0,0.00154548]
[1746116668500,0.2059944,97056.0,97055.0,2e-08]
[1746116669004,0.3090264,97056.0,97055.0,2e-08]
[1746116669202,0.3696264,97056.0,97055.0,2e-08]
[1746116670493,0.3706264,97056.0,97055.0,2e-08]
[1746116673707,0.4358664,97056.0,97055.0,2e-08]
[1746116674299,0.3026344,97056.0,97055.0,2e-08]
[1746116675302,0.2722344,97056.0,97055.0,2e-08]
[1746116676912,0.2722344,97056.0,97055.0,0.00100002]
[1746116677315,0.2722344,97056.0,97055.0,2e-08]
[1746116677699,0.2712344,97056.0,97055.0,0.00100002]
[1746116680617,0.3019344,97056.0,97055.0,0.00100002]
[1746116681002,0.3029344,97056.0,97055.0,2e-08]
[1746116682017,0.3019344,97056.0,97055.0,2e-08]
[1746116682317,0.3029344,97056.0,97055.0,2e-08]
[1746116687313,0.3019344,97056.0,97055.0,2e-08]
[1746116687514,0.3029344,97056.0,97055.0,2e-08]
[1746116689809,0.2069944,97056.0,97055.0,2e-08]
[1746116691320,0.2059944,97056.0,97055.0,2e-08]
[1746116691623,0.2059944,97056.0,97055.0,0.00100002]
[1746116692824,0.2060114,97048.0,97047.0,0.12863514]
[1746116693027,0.2060156,97046.0,97045.0,0.2575203]
[1746116693327,0.206022,97044.0,97043.0,0.206017]
[1746116695624,0.207022,97044.0,97043.0,0.210017]
[1746116696017,0.207022,97044.0,97043.0,0.302917]
[1746116696221,0.207022,97044.0,97043.0,0.305917]
[1746116697827,0.207022,97044.0,97043.0,0.304917]
[1746116698425,0.206022,97044.0,97043.0,0.301917]
[1746116698626,0.207022,97044.0,97043.0,0.301917]
[1746116698826,0.207022,97044.0,97043.0,0.304917]
[1746116699225,0.206022,97044.0,97043.0,0.301917]
[1746116699427,0.207022,97044.0,97043.0,0.304917]
[1746116700324,0.001,97044.0,97043.0,0.304917]
[1746116700524,0.2070199,97044.0,97043.0,0.304917]
[1746116701526,0.2070199,97044.0,97043.0,0.305917]
[1746116701719,0.2070199,97044.0,97043.0,0.0999]
[1746116702323,0.2060199,97044.0,97043.0,0.0959]
[1746116702523,0.2070199,97044.0,97043.0,0.0999]
[1746116702724,0.2070199,97044.0,97043.0,0.0969]
[1746116702925,0.2070199,97044.0,97043.0,0.0999]
[1746116703334,0.2070199,97044.0,97043.0,0.0969]
[1746116703629,0.2070199,97044.0,97043.0,0.0989]
[1746116703839,0.2060199,97044.0,97043.0,0.0949]
[1746116704032,0.2070199,97044.0,97043.0,0.0979]
[1746116704723,0.2070199,97044.0,97043.0,0.0949]
[1746116704924,0.2070199,97044.0,97043.0,0.0969]
[1746116706427,0.2070199,97044.0,97043.0,0.0949]
[1746116706628,0.2070199,97044.0,97043.0,0.0969]
[1746116708229,0.2060199,97044.0,97043.0,0.0949]
[1746116708430,0.2070199,97044.0,97043.0,0.0969]
[1746116710335,0.2070199,97044.0,97043.0,0.302922]
[1746116712135,0.001,97044.0,97043.0,0.302922]
[1746116712330,0.3608,97058.0,97044.0,0.0515048]
[1746116712527,0.2060086,97051.0,97050.0,0.2060022]
[1746116712731,0.2059941,97057.0,97056.0,0.2059923]
[1746116713635,0.2059941,97057.0,97056.0,0.2694923]
[1746116714143,0.001,97058.0,97057.0,0.2059923]
[1746116714536,0.001,97058.0,97057.0,0.2694923]
[1746116714842,0.2059902,97060.0,97059.0,0.2059834]
[1746116715039,0.2059902,97060.0,97059.0,0.2694834]
[1746116715538,0.2574701,97066.0,97065.0,0.2059753]
[1746116715745,0.2059795,97064.0,97063.0,0.2059779]
[1746116715943,0.2059795,97064.0,97063.0,0.2694779]
[1746116716343,0.2388795,97064.0,97063.0,0.2694779]
[1746116717246,0.2398795,97064.0,97063.0,0.2724779]
[1746116717645,0.2398795,97064.0,97063.0,0.2744779]
[1746116718746,0.001,97064.0,97063.0,0.6352779]
[1746116719437,0.2069774,97064.0,97063.0,0.6352779]
[1746116720141,0.001,97064.0,97063.0,0.7383019]
[1746116720341,0.001,97086.0,97085.0,0.2059329]
[1746116720551,0.001,97086.0,97085.0,0.5667329]
[1746116720842,0.001,97086.0,97085.0,0.6697329]
[1746116721038,0.001,97086.0,97085.0,0.7697329]
[1746116721243,0.001,97086.0,97085.0,0.8317329]
[1746116721645,0.001,97086.0,97085.0,0.83956314]
[1746116721834,0.001,97086.0,97085.0,0.84056314]
[1746116723146,0.0362,97086.0,97085.0,0.84156314]
[1746116723642,0.0322,97086.0,97085.0,0.84056314]
[1746116723842,0.0322,97086.0,97085.0,0.84156314]
[1746116724044,0.0322,97086.0,97085.0,0.73856314]
[1746116725343,0.001,97086.0,97085.0,0.84156314]
[1746116726249,0.001,97086.0,97085.0,0.73856314]
[1746116728247,0.3608,97104.0,97085.0,0.63563024]
[1746116728554,0.3059027,97100.0,97099.0,0.2059032]
[1746116729146,0.1,97100.0,97099.0,0.2059032]
[1746116729952,0.1,97100.0,97099.0,0.30200184]
[1746116730144,0.103,97100.0,97099.0,0.3686032]
[1746116730346,0.0015,97110.0,97109.0,0.205882]
[1746116730750,0.2073799,97110.0,97109.0,0.205882]
[1746116730951,0.0015,97110.0,97109.0,0.205882]
[1746116731552,0.0015,97110.0,97109.0,0.237082]
[1746116731754,0.0045,97110.0,97109.0,0.237082]
[1746116732150,0.0015,97110.0,97109.0,0.237082]
[1746116732449,0.0035,97110.0,97109.0,0.237082]
[1746116734654,0.0035,97110.0,97109.0,0.337082]
[1746116734857,0.2093799,97110.0,97109.0,0.337082]
[1746116738262,0.0035,97110.0,97109.0,0.337082]
[1746116738757,0.0035,97110.0,97109.0,0.369982]
[1746116739063,0.3608,97130.0,97109.0,0.1641]
[1746116739359,0.287514,97124.0,97123.0,0.2058523]
[1746116740059,0.287514,97124.0,97123.0,0.2682523]
[1746116740451,0.287514,97124.0,97123.0,0.0624]
[1746116740652,0.290514,97124.0,97123.0,0.0624]
[1746116740950,0.290514,97124.0,97123.0,0.0304]
[1746116741150,0.0514593,97131.0,97123.0,0.0304]
[1746116741151,0.3608,97154.0,97144.0,0.2058078]
[1746116741352,0.3608,97166.0,97165.0,0.2057633]
[1746116741858,0.5665612,97166.0,97165.0,0.2057633]
[1746116742060,0.2057654,97164.0,97163.0,0.2057667]
[1746116742258,0.2057654,97164.0,97163.0,0.00761205]
[1746116742554,0.2057739,97160.0,97159.0,0.0652]
[1746116742757,0.2057845,97155.0,97154.0,0.3608]
[1746116743660,0.2707845,97155.0,97154.0,0.3608]
[1746116744045,0.2707845,97155.0,97154.0,0.3628]
[1746116745260,0.2707845,97155.0,97154.0,0.3638]
[1746116745651,0.2707845,97155.0,97154.0,0.37149305]
[1746116745854,0.2707845,97155.0,97154.0,0.01069305]
[1746116746254,0.2707845,97155.0,97153.0,0.0652]
[1746116746255,0.2058036,97146.0,97145.0,0.00154388]
[1746116746460,0.5666036,97146.0,97145.0,0.00154388]
[1746116747059,0.6320036,97146.0,97145.0,0.00154388]
[1746116747259,0.6320036,97146.0,97145.0,0.00354388]
[1746116747455,0.2712036,97146.0,97145.0,0.00354388]
[1746116747963,0.2712036,97146.0,97145.0,0.00154388]
[1746116749056,0.2712036,97146.0,97145.0,0.00254388]
[1746116749365,0.2712036,97146.0,97145.0,0.01009301]
[1746116750365,0.2712036,97146.0,97145.0,0.00909301]
[1746116751365,0.2722036,97146.0,97145.0,0.00909301]
[1746116756969,0.2058417,97128.0,97110.0,0.3608]
[1746116757267,0.2058671,97116.0,97110.0,0.3608]
[1746116757467,0.2058671,97116.0,97109.0,0.06516]
[1746116757468,0.2058671,97116.0,97111.0,0.0317]
[1746116757667,0.2058671,97116.0,97114.0,0.2058707]
[1746116758071,0.2058671,97116.0,97112.0,0.2058744]
[1746116758260,0.2058671,97116.0,97113.0,0.2058717]
[1746116758569,0.2696671,97116.0,97115.0,0.00864829]
[1746116758774,0.2696671,97116.0,97115.0,0.0010297]
[1746116759672,0.2696671,97116.0,97115.0,0.0336297]
[1746116759855,0.2696671,97116.0,97115.0,0.0356297]
[1746116760259,0.2696671,97116.0,97115.0,0.241499]
[1746116760459,0.2696671,97116.0,97115.0,0.239499]
[1746116760659,0.2058561,97124.0,97123.0,0.2573107]
[1746116760864,0.257328,97122.0,97121.0,0.205855]
[1746116761066,0.1029865,97121.0,97120.0,0.0316]
[1746116761267,0.1335865,97121.0,97120.0,0.0316]
[1746116761462,0.2000865,97121.0,97120.0,0.0316]
[1746116762167,0.1335865,97121.0,97120.0,0.2374587]
[1746116763071,0.2068544,97124.0,97123.0,0.2058523]
[1746116763575,0.2058544,97124.0,97123.0,0.2058523]
[1746116764472,0.2058544,97124.0,97123.0,0.2078523]
[1746116764868,0.0514547,97139.0,97135.0,0.2058269]
[1746116765076,0.5666248,97136.0,97135.0,0.2058269]
[1746116765676,0.2058269,97135.0,97134.0,0.0319]
[1746116765971,0.2361269,97135.0,97134.0,0.0319]
[1746116766675,0.2361269,97135.0,97134.0,0.237729]
[1746116766868,0.2361269,97135.0,97134.0,0.240729]
[1746116767063,0.2361269,97135.0,97134.0,0.242729]
[1746116767465,0.2361269,97135.0,97134.0,0.240729]
[1746116767666,0.2361269,97135.0,97134.0,0.0359]
[1746116768974,0.2361269,97135.0,97134.0,0.239729]
[1746116769276,0.2361269,97135.0,97134.0,0.241729]
[1746116770676,0.2058269,97135.0,97134.0,0.241729]
[1746116770876,0.0329,97143.0,97142.0,0.205812]
[1746116771177,0.2387099,97143.0,97142.0,0.205812]
[1746116771380,0.2058142,97141.0,97140.0,0.051454]
[1746116771567,0.2058142,97141.0,97140.0,0.2058118]
[1746116771964,0.2058142,97141.0,97140.0,0.2572655]
[1746116772163,0.2073076,97145.0,97144.0,0.2058078]
[1746116772378,0.2058142,97143.0,97142.0,0.205811]
[1746116773479,0.2073057,97145.0,97144.0,0.2058078]
[1746116774073,0.2058099,97143.0,97142.0,0.001]
[1746116774381,0.2058099,97143.0,97142.0,0.003]
[1746116774772,0.2687099,97143.0,97142.0,0.003]
[1746116775171,0.2687099,97143.0,97142.0,0.002]
[1746116775675,0.2058375,97130.0,97129.0,0.2058386]
[1746116776881,0.2365375,97130.0,97129.0,0.2068386]
[1746116777079,0.2687375,97130.0,97129.0,0.2068386]
[1746116777374,0.2687375,97130.0,97129.0,0.2078386]
[1746116778171,0.1352175,97130.0,97129.0,0.2078386]
[1746116780884,0.1673175,97130.0,97129.0,0.2392386]
[1746116781380,0.1352175,97130.0,97129.0,0.2392386]
[1746116784087,0.1352175,97130.0,97129.0,0.0334]
[1746116784681,0.1352175,97130.0,97129.0,0.2392387]
[1746116785483,0.1352175,97130.0,97129.0,0.0334]
[1746116787385,0.1352175,97130.0,97129.0,0.2392396]
[1746116787775,0.0322,97130.0,97129.0,0.2392396]
[1746116787980,0.2058343,97133.0,97132.0,0.2058287]
[1746116788183,0.2058166,97142.0,97141.0,0.2058102]
[1746116788381,0.2058142,97141.0,97140.0,0.0958]
[1746116788683,0.2365142,97141.0,97140.0,0.0958]
[1746116789484,0.2375142,97141.0,97140.0,0.0958]
[1746116790992,0.2395142,97141.0,97140.0,0.0958]
[1746116791487,0.2395142,97141.0,97140.0,0.0645]
[1746116791689,0.2385142,97141.0,97140.0,0.0655]
[1746116791890,0.2365142,97141.0,97140.0,0.0665]
[1746116792591,0.2365142,97141.0,97140.0,0.0655]
[1746116792783,0.2365142,97141.0,97140.0,0.0665]
[1746116794091,0.2365142,97141.0,97140.0,0.0655]
[1746116794292,0.2365142,97141.0,97140.0,0.0665]
[1746116794894,0.2365142,97141.0,97140.0,0.0655]
[1746116795194,0.2365142,97141.0,97140.0,0.0665]